bitfinex/quotes_BTCUSD_20251213
["timestamp","ask_amount","ask_price","bid_price","bid_amount"]
[1765585471197,2.0,90406.0,90403.0,0.30176157]
[1765585471412,2.0,90406.0,90405.0,0.1]
[1765585471820,2.0,90406.0,90405.0,0.13321815]
[1765585472006,2.0,90406.0,90405.0,0.03321815]
[1765585472633,2.0,90406.0,90405.0,0.25444485]
[1765585472836,2.0,90406.0,90405.0,0.26444485]
[1765585473038,2.0,90406.0,90405.0,0.04321815]
[1765585473263,2.03908,90406.0,90405.0,0.05421815]
[1765585476747,2.03908,90406.0,90405.0,0.05490305]
[1765585485000,2.01506,90406.0,90405.0,0.05490305]
[1765585485182,2.0,90406.0,90405.0,0.05490305]
[1765585505258,2.04092013,90406.0,90405.0,0.05490305]
[1765585513030,2.08412013,90406.0,90405.0,0.0216849]
[1765585513263,2.4642454,90406.0,90405.0,0.0216849]
[1765585513544,2.42119129,90406.0,90405.0,0.0216849]
[1765585514146,2.42119129,90406.0,90405.0,0.0006849]
[1765585514395,2.42119129,90406.0,90405.0,0.0096849]
[1765585514686,2.42119129,90406.0,90405.0,0.0196849]
[1765585515971,2.41082759,90406.0,90405.0,0.0196849]
[1765585516377,2.38696344,90406.0,90405.0,0.0196849]
[1765585518278,2.38696344,90406.0,90405.0,0.0096849]
[1765585518687,2.38696344,90406.0,90405.0,0.0186849]
[1765585518839,2.38696344,90406.0,90405.0,0.0096849]
[1765585519045,2.38696344,90406.0,90405.0,0.0176849]
[1765585527395,2.50346344,90406.0,90405.0,0.0176849]
[1765585527591,2.38696344,90406.0,90405.0,0.0176849]
[1765585529332,2.35373778,90406.0,90405.0,0.0176849]
[1765585529929,2.31053778,90406.0,90405.0,0.0176849]
[1765585530127,2.32797778,90406.0,90405.0,0.0176849]
[1765585530536,2.31053778,90406.0,90405.0,0.0176849]
[1765585531349,2.31053778,90406.0,90405.0,0.0086849]
[1765585531937,2.31053778,90406.0,90405.0,0.0006849]
[1765585532148,2.31053778,90406.0,90405.0,0.0096849]
[1765585532348,2.35373778,90406.0,90405.0,0.0096849]
[1765585533201,2.35373778,90406.0,90405.0,0.0196849]
[1765585545347,2.31053778,90406.0,90405.0,0.0196849]
[1765585547387,2.35373778,90406.0,90405.0,0.0196849]
[1765585549637,2.31053778,90406.0,90405.0,0.0196849]
[1765585551268,2.35373778,90406.0,90405.0,0.0196849]
[1765585551797,2.31053778,90406.0,90405.0,0.0196849]
[1765585552068,2.35373778,90406.0,90405.0,0.0196849]
[1765585580333,2.31053778,90406.0,90405.0,0.0196849]
[1765585595461,2.45530611,90406.0,90405.0,0.0196849]
[1765585595659,2.40768339,90406.0,90405.0,0.0196849]
[1765585596583,2.43752291,90406.0,90405.0,0.0196849]
[1765585596997,2.40768339,90406.0,90405.0,0.0106849]
[1765585597201,2.40768339,90406.0,90405.0,0.0006849]
[1765585597340,2.43751251,90406.0,90405.0,0.0086849]
[1765585597540,2.43751251,90406.0,90405.0,0.0176849]
[1765585597882,2.43751251,90406.0,90405.0,0.0096849]
[1765585598084,2.43751251,90406.0,90405.0,0.0076849]
[1765585598284,2.40768339,90406.0,90405.0,0.0076849]
[1765585598503,2.40768339,90406.0,90405.0,0.0146849]
[1765585612008,2.40762252,90406.0,90405.0,0.0146849]
[1765585613236,2.45725589,90406.0,90405.0,0.0146849]
[1765585621661,0.26446096,90391.0,90390.0,0.00038654]
[1765585621863,0.50831861,90391.0,90390.0,0.00038654]
[1765585622081,0.55151861,90391.0,90390.0,0.00038654]
[1765585622457,0.56740351,90391.0,90390.0,0.00038654]
[1765585622599,0.5777537,90391.0,90390.0,0.00038654]
[1765585623458,0.5777537,90391.0,90390.0,0.00938654]
[1765585624109,0.5777537,90391.0,90390.0,0.01638654]
[1765585627284,0.5777537,90391.0,90390.0,0.01683335]
[1765585630435,0.56740351,90391.0,90390.0,0.01683335]
[1765585643445,0.57775315,90391.0,90390.0,0.01683335]
[1765585665196,1.57775315,90391.0,90390.0,0.01683335]
[1765585665404,1.60158369,90391.0,90390.0,0.01683335]
[1765585672094,1.57775315,90391.0,90390.0,0.01683335]
[1765585672298,1.60163898,90391.0,90390.0,0.01683335]
[1765585677091,1.93206659,90391.0,90390.0,0.01683335]
[1765585677290,1.89233898,90391.0,90390.0,0.01683335]
[1765585677697,1.89233898,90391.0,90390.0,0.00783335]
[1765585678118,1.89233898,90391.0,90390.0,0.01483335]
[1765585678927,1.89233898,90391.0,90390.0,0.00783335]
[1765585679302,1.89233898,90391.0,90390.0,0.00583335]
[1765585679502,2.0028466,90391.0,90390.0,0.00083335]
[1765585679959,2.0028466,90391.0,90390.0,0.00983335]
[1765585681011,2.0028466,90391.0,90390.0,1e-08]
[1765585681218,1.89233898,90391.0,90390.0,1e-08]
[1765585682045,1.93209548,90391.0,90390.0,1e-08]
[1765585684407,1.89233898,90391.0,90390.0,1e-08]
[1765585687885,1.87489898,90391.0,90390.0,1e-08]
[1765585688085,1.89233898,90391.0,90390.0,1e-08]
[1765585689036,1.93028413,90391.0,90390.0,1e-08]
[1765585690131,2.04678413,90391.0,90390.0,1e-08]
[1765585690536,1.93028413,90391.0,90390.0,1e-08]
[1765585692201,2.04079175,90391.0,90390.0,1e-08]
[1765585692544,2.04078964,90391.0,90390.0,1e-08]
[1765585694803,1.93011466,90391.0,90390.0,1e-08]
[1765585707070,1.96987116,90391.0,90390.0,1e-08]
[1765585707220,1.93011466,90391.0,90390.0,1e-08]
[1765585707857,1.92667116,90391.0,90390.0,1e-08]
[1765585708077,1.93011466,90391.0,90390.0,1e-08]
[1765585709048,2.04062228,90391.0,90390.0,1e-08]
[1765585709865,2.04063725,90391.0,90390.0,1e-08]
[1765585715962,2.04063726,90391.0,90390.0,1e-08]
[1765585728412,2.04063739,90391.0,90390.0,1e-08]
[1765585732379,2.01675156,90391.0,90390.0,1e-08]
[1765585735163,2.0406285,90391.0,90390.0,1e-08]
[1765585736745,2.01675156,90391.0,90390.0,1e-08]
[1765585736947,2.04063197,90391.0,90390.0,1e-08]
[1765585739624,1.93012435,90391.0,90390.0,1e-08]
[1765585742369,1.67923611,90391.0,90390.0,1e-08]
[1765585742589,1.63942435,90391.0,90390.0,1e-08]
[1765585743497,1.66926889,90391.0,90390.0,1e-08]
[1765585744538,1.63942435,90391.0,90390.0,1e-08]
[1765585747747,1.63941991,90391.0,90390.0,1e-08]
[1765585771590,1.66926445,90391.0,90390.0,1e-08]
[1765585772375,1.63941991,90391.0,90390.0,1e-08]
[1765585775756,2.06711806,90391.0,90390.0,1e-08]
[1765585775924,2.0273063,90391.0,90390.0,1e-08]
[1765585776894,1.93011991,90391.0,90390.0,1e-08]
[1765585777507,1.96990343,90391.0,90390.0,1e-08]
[1765585780472,1.93011991,90391.0,90390.0,1e-08]
[1765585801783,1.96990343,90391.0,90390.0,1e-08]
[1765585804314,1.93011991,90391.0,90390.0,1e-08]
[1765585805382,2.01959024,90391.0,90390.0,1e-08]
[1765585806615,1.93011991,90391.0,90390.0,1e-08]
[1765585809386,1.89217476,90391.0,90390.0,1e-08]
[1765585816817,1.89218325,90391.0,90390.0,1e-08]
[1765585820473,1.92203492,90391.0,90390.0,1e-08]
[1765585822341,1.89218325,90391.0,90390.0,1e-08]
[1765585829601,1.60148325,90391.0,90390.0,1e-08]
[1765585829841,1.63925282,90391.0,90390.0,1e-08]
[1765585839304,1.62779898,90391.0,90390.0,1e-08]
[1765585847191,1.61445065,90391.0,90390.0,1e-08]
[1765585847442,1.62779898,90391.0,90390.0,1e-08]
[1765585862253,1.7383066,90391.0,90390.0,1e-08]
[1765585862453,1.62779898,90391.0,90390.0,1e-08]
[1765585867401,1.62495576,90391.0,90390.0,1e-08]
[1765585871961,1.5773247,90391.0,90390.0,1e-08]
[1765585873054,1.6205247,90391.0,90390.0,1e-08]
[1765585878381,1.62052496,90391.0,90390.0,1e-08]
[1765585885589,1.62052311,90391.0,90390.0,1e-08]
[1765585888000,1.57732311,90391.0,90390.0,1e-08]
[1765585891595,1.57732557,90391.0,90390.0,1e-08]
[1765585894187,1.62052557,90391.0,90390.0,1e-08]
[1765585897610,1.64305656,90391.0,90390.0,1e-08]
[1765585910918,1.59985656,90391.0,90390.0,1e-08]
[1765585911125,1.64305656,90391.0,90390.0,1e-08]
[1765585912365,1.59985656,90391.0,90390.0,1e-08]
[1765585912801,1.57732557,90391.0,90390.0,1e-08]
[1765585914606,0.22128055,90383.0,90382.0,0.02253099]
[1765585914770,0.22128055,90383.0,90382.0,0.02291962]
[1765585916177,0.22128055,90383.0,90382.0,0.02791962]
[1765585916813,0.22128055,90383.0,90382.0,0.03291962]
[1765585920085,0.22128055,90383.0,90382.0,0.03315795]
[1765585934293,0.23234119,90385.0,90382.0,0.03315795]
[1765585934505,0.22128055,90383.0,90382.0,0.03315795]
[1765585934706,0.22128055,90383.0,90382.0,0.01062696]
[1765585935055,0.22128055,90383.0,90382.0,0.04378491]
[1765585935492,0.22127963,90384.0,90382.0,0.04378491]
[1765585935739,0.22127963,90384.0,90382.0,0.03878491]
[1765585935945,0.22127963,90384.0,90382.0,0.04378491]
[1765585936086,0.22127963,90384.0,90382.0,0.01062696]
[1765585936321,0.22127963,90384.0,90383.0,0.03322835]
[1765585936520,0.22127963,90384.0,90383.0,0.03350109]
[1765585937312,0.01106378,90385.0,90383.0,0.03350109]
[1765585937695,0.2212781,90384.0,90383.0,0.00727274]
[1765585938280,0.2212781,90384.0,90383.0,0.01833701]
[1765585938866,0.2212781,90384.0,90383.0,0.01733701]
[1765585939286,0.2212781,90384.0,90383.0,0.02433701]
[1765585939691,0.2212781,90384.0,90383.0,0.01733701]
[1765585940117,0.2212781,90384.0,90383.0,0.02433701]
[1765585942759,0.2212781,90384.0,90383.0,0.01327274]
[1765585954387,0.27484613,90384.0,90383.0,0.013]
[1765585954609,0.28811887,90384.0,90383.0,0.013]
[1765585955254,0.0432,90383.0,90382.0,0.00035422]
[1765585955464,0.05356803,90383.0,90382.0,0.00035422]
[1765585955833,0.05799942,90383.0,90382.0,0.00035422]
[1765585956461,0.09463199,90383.0,90382.0,0.00035422]
[1765585956664,0.09463199,90383.0,90382.0,0.00635422]
[1765585957355,0.38533199,90383.0,90382.0,0.00635422]
[1765585957817,0.38533199,90383.0,90382.0,0.01135422]
[1765585960058,0.38531286,90383.0,90382.0,0.01135422]
[1765585961359,0.37496396,90383.0,90382.0,0.01135422]
[1765585968792,0.62246396,90383.0,90382.0,0.01135422]
[1765585968954,0.64635879,90383.0,90382.0,0.01135422]
[1765585976393,0.6567057,90383.0,90382.0,0.01135422]
[1765585984005,0.3660057,90383.0,90382.0,0.01135422]
[1765585984165,0.33176396,90383.0,90382.0,0.01135422]
[1765585989180,0.28413257,90383.0,90382.0,0.01135422]
[1765585995769,0.32733257,90383.0,90382.0,0.01135422]
[1765585996362,0.33868679,90383.0,90382.0,0.01135422]
[1765586011275,0.33741648,90383.0,90382.0,0.01135422]
[1765586013828,0.32606226,90383.0,90382.0,0.01135422]
[1765586015137,0.28286226,90383.0,90382.0,0.01162696]
[1765586030080,0.39364026,90383.0,90382.0,0.01162696]
[1765586041559,0.43684026,90383.0,90382.0,0.01162696]
[1765586041762,0.39364026,90383.0,90382.0,0.01162696]
[1765586043022,0.28286226,90383.0,90382.0,0.01162696]
[1765586043913,0.28286226,90383.0,90382.0,0.01135422]
[1765586044115,0.32606226,90383.0,90382.0,0.01135422]
[1765586057411,0.22133442,90361.0,90360.0,0.26354396]
[1765586057610,0.22133442,90361.0,90360.0,0.00037121]
[1765586060126,0.22433442,90361.0,90360.0,0.00037121]
[1765586061133,0.003,90361.0,90360.0,0.00037121]
[1765586062884,0.003,90361.0,90360.0,0.24449738]
[1765586063086,0.003,90361.0,90360.0,0.3223637]
[1765586063621,0.003,90361.0,90360.0,0.23342968]
[1765586063830,0.003,90361.0,90360.0,0.25556336]
[1765586064307,0.003,90361.0,90360.0,0.23342968]
[1765586068715,0.003,90361.0,90360.0,0.37662968]
[1765586069119,0.003,90361.0,90360.0,0.33342968]
[1765586070203,0.003,90361.0,90360.0,0.23342968]
[1765586073859,0.003,90361.0,90360.0,0.26102968]
[1765586078874,0.003,90361.0,90360.0,0.23342968]
[1765586080895,0.003,90361.0,90360.0,0.26102968]
[1765586081930,0.003,90361.0,90360.0,0.23342968]
[1765586083258,0.003,90361.0,90360.0,0.26102968]
[1765586083592,0.003,90361.0,90360.0,0.23342968]
[1765586097371,0.003,90361.0,90360.0,0.26102968]
[1765586097576,0.003,90361.0,90360.0,0.23342968]
[1765586097773,0.003,90361.0,90360.0,0.71734807]
[1765586098804,0.003,90361.0,90360.0,0.57414807]
[1765586099002,0.003,90361.0,90360.0,0.67414807]
[1765586099970,0.003,90361.0,90360.0,0.3702512]
[1765586108320,0.003,90361.0,90360.0,0.3528112]
[1765586108518,0.003,90361.0,90360.0,0.3702512]
[1765586111432,0.003,90361.0,90360.0,0.3978512]
[1765586112365,0.003,90361.0,90360.0,0.4410512]
[1765586112749,0.003,90361.0,90360.0,0.3978512]
[1765586118183,0.003,90361.0,90360.0,0.3702512]
[1765586122760,0.003,90361.0,90360.0,0.4702512]
[1765586123823,0.003,90361.0,90360.0,0.5134512]
[1765586124842,0.003,90361.0,90360.0,0.4702512]
[1765586125495,0.003,90361.0,90360.0,0.3978512]
[1765586127894,0.003,90361.0,90360.0,0.3702512]
[1765586128096,0.003,90361.0,90360.0,0.3978512]
[1765586129528,0.003,90361.0,90360.0,0.3702512]
[1765586130355,0.003,90361.0,90360.0,0.3978512]
[1765586131383,0.003,90361.0,90360.0,0.3702512]
[1765586134605,0.003,90361.0,90360.0,0.01209281]
[1765586134805,0.003,90361.0,90360.0,0.01182007]
[1765586144805,0.003,90361.0,90360.0,0.01209281]
[1765586145012,0.003,90361.0,90360.0,0.03422649]
[1765586145714,0.003,90361.0,90360.0,0.22744488]
[1765586146896,0.003,90361.0,90360.0,0.57792955]
[1765586147103,0.003,90361.0,90360.0,0.55579587]
[1765586147703,0.01106561,90370.0,90367.0,0.01106598]
[1765586148083,0.01106561,90370.0,90369.0,0.00038737]
[1765586149060,0.01306561,90370.0,90369.0,0.00038737]
[1765586150043,0.01606561,90370.0,90369.0,0.00038737]
[1765586150209,0.01106561,90370.0,90369.0,0.00038737]
[1765586150810,0.01606561,90370.0,90369.0,0.03361877]
[1765586158941,0.005,90370.0,90369.0,0.03361877]
[1765586195912,0.005,90370.0,90369.0,0.00038737]
[1765586215577,0.005,90370.0,90369.0,0.00066011]
[1765586215781,0.005,90370.0,90369.0,0.43430998]
[1765586215945,0.005,90370.0,90369.0,0.4454021]
[1765586216150,0.005,90370.0,90369.0,0.5425346]
[1765586216389,0.005,90370.0,90369.0,0.4628421]
[1765586217073,0.002,90370.0,90369.0,0.4628421]
[1765586217274,1.0,90391.0,90388.0,0.01106341]
[1765586217882,1.22126158,90391.0,90389.0,0.01744]
[1765586218938,1.23426158,90391.0,90389.0,0.01744]
[1765586219288,1.24026158,90391.0,90389.0,0.01744]
[1765586220127,1.23426158,90391.0,90389.0,0.01744]
[1765586220353,1.24026158,90391.0,90389.0,0.01844]
[1765586220829,1.22726158,90391.0,90389.0,0.01844]
[1765586221233,1.24026158,90391.0,90389.0,0.01944]
[1765586222227,0.02211765,90390.0,90389.0,0.01944]
[1765586223045,0.02211765,90390.0,90389.0,0.01844]
[1765586223474,0.02811765,90390.0,90389.0,0.01944]
[1765586223907,0.02811765,90390.0,90389.0,0.01844]
[1765586224355,0.04111765,90390.0,90389.0,0.01944]
[1765586226165,0.04245778,90390.0,90389.0,0.01944]
[1765586226377,0.04245778,90390.0,90389.0,0.002]
[1765586226579,0.10779133,90390.0,90389.0,0.002]
[1765586254725,0.06459133,90390.0,90389.0,0.002]
[1765586272387,0.05859133,90390.0,90389.0,0.001]
[1765586272592,0.05859133,90390.0,90376.0,0.01106488]
[1765586272593,0.01106451,90379.0,90376.0,0.01106488]
[1765586272798,0.01106451,90379.0,90376.0,9.847e-05]
[1765586273675,0.22129476,90378.0,90376.0,0.00109847]
[1765586274435,0.22129476,90378.0,90376.0,9.847e-05]
[1765586274775,0.22129476,90378.0,90376.0,0.00109847]
[1765586274998,0.22129476,90378.0,90376.0,9.847e-05]
[1765586275353,0.23029476,90378.0,90376.0,0.00109847]
[1765586275737,0.24129476,90378.0,90376.0,0.00209847]
[1765586290697,0.02,90378.0,90376.0,0.00209847]
[1765586290903,0.24129361,90378.0,90376.0,0.00209847]
[1765586291199,0.02,90378.0,90376.0,0.00209847]
[1765586291972,0.24129452,90378.0,90376.0,0.00209847]
[1765586315283,0.24129452,90378.0,90377.0,0.01130349]
[1765586316267,0.23229452,90378.0,90377.0,0.01130349]
[1765586316648,0.24129452,90378.0,90377.0,0.01230349]
[1765586317030,0.23029452,90378.0,90377.0,0.01230349]
[1765586317412,0.24129452,90378.0,90377.0,0.01330349]
[1765586319472,0.02,90378.0,90377.0,0.01330349]
[1765586401442,0.04213355,90378.0,90377.0,0.01330349]
[1765586401650,0.02,90378.0,90377.0,0.01330349]
[1765586403848,0.0632,90378.0,90377.0,0.01330349]
[1765586404059,0.02,90378.0,90377.0,0.01330349]
[1765586404904,0.011,90378.0,90377.0,0.01230349]
[1765586405325,0.012,90378.0,90377.0,0.02530349]
[1765586405493,0.011,90378.0,90377.0,0.01230349]
[1765586405884,0.001,90378.0,90377.0,0.02430349]
[1765586406317,0.002,90378.0,90377.0,0.03830349]
[1765586406816,0.001,90378.0,90377.0,0.02430349]
[1765586407240,0.003,90378.0,90377.0,0.03930349]
[1765586407631,0.04064178,90378.0,90377.0,0.03930349]
[1765586418926,0.08384178,90378.0,90377.0,0.03930349]
[1765586419387,0.04064178,90378.0,90377.0,0.03930349]
[1765586463667,0.04064178,90378.0,90377.0,0.03957623]
[1765586468521,0.04064178,90378.0,90377.0,0.18277623]
[1765586468748,0.04064178,90378.0,90377.0,0.13957623]
[1765586469291,0.04064178,90378.0,90377.0,0.03957623]
[1765586471063,0.04064178,90378.0,90377.0,0.10703462]
[1765586471269,0.04064178,90378.0,90377.0,0.54093462]
[1765586472239,0.03964178,90378.0,90377.0,0.52793462]
[1765586472609,0.04464178,90378.0,90377.0,0.51393462]
[1765586473034,0.05664178,90378.0,90377.0,0.51493462]
[1765586481902,0.05664178,90378.0,90377.0,0.45429462]
[1765586482154,0.05664178,90378.0,90377.0,0.47173462]
[1765586483376,0.05664178,90378.0,90377.0,0.44253462]
[1765586484430,0.05664178,90378.0,90377.0,0.39933462]
[1765586486694,0.05664178,90378.0,90377.0,0.44253462]
[1765586488618,0.05664178,90378.0,90377.0,0.39933462]
[1765586489521,0.05664178,90378.0,90377.0,0.44253462]
[1765586490525,0.05664178,90378.0,90377.0,0.47173462]
[1765586491210,0.05664178,90378.0,90377.0,0.37173462]
[1765586491839,0.05664178,90378.0,90377.0,0.35429462]
[1765586494022,0.05664178,90378.0,90377.0,0.30427623]
[1765586510298,0.05664178,90378.0,90377.0,0.36396936]
[1765586524268,0.03481383,90378.0,90377.0,0.36396936]
[1765586529365,0.019,90378.0,90377.0,0.36396936]
[1765586531233,0.019,90378.0,90377.0,0.30427623]
[1765586533397,0.019,90378.0,90377.0,0.36396936]
[1765586551357,0.019,90378.0,90377.0,0.01330349]
[1765586551865,0.02034013,90378.0,90377.0,0.002]
[1765586566827,0.02034013,90378.0,90377.0,0.01340196]
[1765586567893,0.02034013,90378.0,90377.0,0.002]
[1765586574941,0.02034013,90378.0,90377.0,0.01550043]
[1765586576162,0.02034013,90378.0,90377.0,0.002]
[1765586582764,0.019,90378.0,90377.0,0.002]
[1765586583127,0.019,90378.0,90377.0,0.02234013]
[1765586616971,0.019,90378.0,90377.0,0.04446965]
[1765586617555,0.019,90378.0,90377.0,0.14446965]
[1765586617732,0.019,90378.0,90377.0,0.19476078]
[1765586622228,0.019,90378.0,90377.0,0.25445391]
[1765586622428,0.019,90378.0,90377.0,0.17263126]
[1765586622649,0.019,90378.0,90377.0,0.19476078]
[1765586623865,0.019,90378.0,90377.0,0.23796078]
[1765586624073,0.019,90378.0,90377.0,0.21583126]
[1765586625067,0.019,90378.0,90377.0,0.07263126]
[1765586629418,0.019,90378.0,90377.0,0.02234013]
[1765586645528,0.01856018,90378.0,90377.0,0.02234013]
[1765586647130,0.01856018,90378.0,90377.0,0.04446965]
[1765586647333,0.01856018,90378.0,90377.0,0.18766965]
[1765586651550,0.01856018,90378.0,90377.0,0.14446965]
[1765586657044,0.01856018,90378.0,90377.0,0.36576489]
[1765586657248,0.01856018,90378.0,90377.0,0.3939265]
[1765586657494,0.01856018,90378.0,90377.0,0.45361963]
[1765586657882,0.01856018,90378.0,90377.0,0.49681963]
[1765586658187,0.01856018,90378.0,90377.0,0.4371265]
[1765586658384,0.01856018,90378.0,90377.0,0.49681963]
[1765586658995,0.01856018,90378.0,90377.0,0.4371265]
[1765586668010,0.01856018,90378.0,90377.0,0.49681963]
[1765586678009,0.01856018,90378.0,90377.0,0.4371265]
[1765586683586,0.01890601,90378.0,90377.0,0.4371265]
[1765586693337,0.01890601,90378.0,90377.0,0.3939265]
[1765586693853,0.01890601,90378.0,90377.0,0.2939265]
[1765586694002,0.01890601,90378.0,90377.0,0.5846265]
[1765586695011,0.01890601,90378.0,90377.0,0.6122265]
[1765586695202,0.01234583,90378.0,90377.0,0.6112265]
[1765586696079,0.02534583,90378.0,90377.0,0.6122265]
[1765586696279,0.02534583,90378.0,90377.0,0.6112265]
[1765586696483,0.01334583,90378.0,90377.0,0.6112265]
[1765586696704,0.02534583,90378.0,90377.0,0.6122265]
[1765586697045,0.01234583,90378.0,90377.0,0.6112265]
[1765586697242,0.02534583,90378.0,90377.0,0.6122265]
[1765586703285,0.02534583,90378.0,90377.0,0.5846265]
[1765586703734,0.02534583,90378.0,90377.0,0.6122265]
[1765586704769,0.02534583,90378.0,90377.0,0.5846265]
[1765586704967,0.02534583,90378.0,90377.0,0.6122265]
[1765586705613,0.02534583,90378.0,90377.0,0.5846265]
[1765586706414,0.02534583,90378.0,90377.0,0.6122265]
[1765586707576,0.02534583,90378.0,90377.0,0.5846265]
[1765586707940,0.02534583,90378.0,90377.0,0.6122265]
[1765586709346,0.02534583,90378.0,90377.0,0.6554265]
[1765586725188,0.02534583,90378.0,90377.0,0.6122265]
[1765586727025,0.02534583,90378.0,90377.0,0.6554265]
[1765586733636,0.02534583,90378.0,90377.0,0.6122265]
[1765586733828,0.02534583,90378.0,90377.0,0.6554265]
[1765586734238,0.02534583,90378.0,90377.0,0.6122265]
[1765586734895,0.02534583,90378.0,90377.0,0.6554265]
[1765586735171,0.02534583,90378.0,90377.0,0.6122265]
[1765586735335,0.02534583,90378.0,90377.0,0.6296665]
[1765586736159,0.02534583,90378.0,90377.0,0.6020665]
[1765586736358,0.02534583,90378.0,90377.0,0.6296665]
[1765586738414,0.02534583,90378.0,90377.0,0.6020665]
[1765586739202,0.02534583,90378.0,90377.0,0.6296665]
[1765586739629,0.02534583,90378.0,90377.0,0.6020665]
[1765586739973,0.02534583,90378.0,90377.0,0.6296665]
[1765586740808,0.02534583,90378.0,90377.0,0.6020665]
[1765586741006,0.02534583,90378.0,90377.0,0.6296665]
[1765586742892,0.02534583,90378.0,90377.0,0.6020665]
[1765586744142,0.02534583,90378.0,90377.0,0.6296665]
[1765586747632,0.02534583,90378.0,90377.0,0.6020665]
[1765586748677,0.02534583,90378.0,90377.0,0.6296665]
[1765586749924,0.02534583,90378.0,90377.0,0.6020665]
[1765586753034,0.02534583,90378.0,90377.0,0.38077126]
[1765586795023,0.02534583,90378.0,90377.0,0.08197695]
[1765586795372,0.02534583,90378.0,90377.0,0.02234013]
[1765586805912,0.02668596,90378.0,90377.0,0.02234013]
[1765586807723,0.04881951,90378.0,90377.0,0.02234013]
[1765586817011,0.03581951,90378.0,90377.0,0.02134013]
[1765586817216,0.02381951,90378.0,90377.0,0.02034013]
[1765586817425,0.02481951,90378.0,90377.0,0.03234013]
[1765586818401,0.02581951,90378.0,90377.0,0.04634013]
[1765586831387,0.06901951,90378.0,90377.0,0.04634013]
[1765586832050,0.02581951,90378.0,90377.0,0.04634013]
[1765586840332,0.00368596,90378.0,90377.0,0.04634013]
[1765586843734,0.02581951,90378.0,90377.0,0.026]
[1765586866564,0.02581951,90378.0,90377.0,0.0592314]
[1765586868209,0.02580361,90378.0,90377.0,0.0592314]
[1765586874832,0.00234583,90378.0,90377.0,0.0592314]
[1765586876101,0.22363862,90378.0,90377.0,0.0592314]
[1765586904148,0.22497875,90378.0,90377.0,0.0592314]
[1765586910344,0.26817875,90378.0,90377.0,0.0592314]
[1765586911136,0.22497875,90378.0,90377.0,0.0592314]
[1765586915228,0.22497875,90378.0,90377.0,0.026]
[1765586923010,0.26817875,90378.0,90377.0,0.026]
[1765586925512,0.22497875,90378.0,90377.0,0.026]
[1765586925669,0.26817875,90378.0,90377.0,0.026]
[1765586929530,0.22497875,90378.0,90377.0,0.026]
[1765586930433,0.22497875,90378.0,90377.0,0.052]
[1765586930693,0.22363862,90378.0,90377.0,0.052]
[1765586930951,0.00234583,90378.0,90377.0,0.10229113]
[1765586940549,0.00234583,90378.0,90377.0,0.32358637]
[1765586940775,0.00234583,90378.0,90377.0,0.61428637]
[1765586941358,0.00234583,90378.0,90377.0,0.65748637]
[1765586941584,0.00134583,90378.0,90377.0,0.64348637]
[1765586941985,0.00034583,90378.0,90377.0,0.63148637]
[1765586942224,0.01434583,90378.0,90377.0,0.63248637]
[1765586942431,0.02634583,90378.0,90377.0,0.63348637]
[1765586942814,0.01234583,90378.0,90377.0,0.63248637]
[1765586943031,0.00034583,90378.0,90377.0,0.63148637]
[1765586943170,0.01334583,90378.0,90377.0,0.63248637]
[1765586943400,0.02334583,90378.0,90377.0,0.63348637]
[1765586943599,0.00034583,90378.0,90377.0,0.63148637]
[1765586944927,0.02134583,90378.0,90377.0,0.63348637]
[1765586967380,0.02134583,90378.0,90377.0,0.71302537]
[1765586967968,0.02134583,90378.0,90377.0,0.63348637]
[1765586968384,0.02134583,90378.0,90377.0,0.71302537]
[1765586969214,0.0048624,90378.0,90377.0,0.71302537]
[1765586969426,0.0048624,90378.0,90377.0,0.63348637]
[1765586970252,0.0048624,90378.0,90377.0,0.59028637]
[1765586970685,0.0048624,90378.0,90377.0,0.63348637]
[1765586972567,0.0048624,90378.0,90377.0,0.59028637]
[1765586972774,0.0048624,90378.0,90377.0,0.60772637]
[1765586989827,0.0048624,90378.0,90377.0,0.65092637]
[1765587009010,0.0048624,90378.0,90377.0,0.60772637]
[1765587009263,0.0048624,90378.0,90377.0,0.65092637]
[1765587025581,0.0048624,90378.0,90377.0,0.73058751]
[1765587028169,0.0048624,90378.0,90377.0,0.65092637]
[1765587032930,0.0048624,90378.0,90377.0,0.63348637]
[1765587033144,0.0048624,90378.0,90377.0,0.65092637]
[1765587036318,0.0048624,90378.0,90377.0,0.60772637]
[1765587036460,0.0048624,90378.0,90377.0,0.65092637]
[1765587059878,0.0048624,90378.0,90377.0,0.59028637]
[1765587060011,0.0048624,90378.0,90377.0,0.7306182]
[1765587060835,0.0048624,90378.0,90377.0,0.6874182]
[1765587061040,0.0048624,90378.0,90377.0,0.7306182]
[1765587061436,0.0048624,90378.0,90377.0,0.65092637]
[1765587068215,0.0048624,90378.0,90377.0,0.63348637]
[1765587068421,0.0048624,90378.0,90377.0,0.65092637]
[1765587068642,0.0048624,90378.0,90377.0,0.63348637]
[1765587068843,0.0048624,90378.0,90377.0,0.65092637]
[1765587069047,0.0048624,90378.0,90377.0,0.63348637]
[1765587069375,0.0048624,90378.0,90377.0,0.65092637]
[1765587070159,0.0048624,90378.0,90377.0,0.63348637]
[1765587070365,0.0048624,90378.0,90377.0,0.65092637]
[1765587070903,0.0048624,90378.0,90377.0,0.63348637]
[1765587071489,0.0048624,90378.0,90377.0,0.65092637]
[1765587072098,0.0048624,90378.0,90377.0,0.63348637]
[1765587072307,0.0048624,90378.0,90377.0,0.65092637]
[1765587073115,0.0048624,90378.0,90377.0,0.63348637]
[1765587073308,0.0048624,90378.0,90377.0,0.65092637]
[1765587073729,0.0048624,90378.0,90377.0,0.63348637]
[1765587074344,0.0048624,90378.0,90377.0,0.65092637]
[1765587076874,0.0048624,90378.0,90377.0,0.59028637]
[1765587077090,0.0048624,90378.0,90377.0,0.60772637]
[1765587077756,0.0048624,90378.0,90377.0,0.65092637]
[1765587095475,0.0048624,90378.0,90377.0,0.60772637]
[1765587095679,0.0048624,90378.0,90377.0,0.65092637]
[1765587101845,0.0048624,90378.0,90377.0,0.63348637]
[1765587102195,0.0048624,90378.0,90377.0,0.65092637]
[1765587102399,0.0048624,90378.0,90377.0,0.63348637]
[1765587102604,0.0048624,90378.0,90377.0,0.65092637]
[1765587103527,0.0048624,90378.0,90377.0,0.63348637]
[1765587103745,0.0048624,90378.0,90377.0,0.65092637]
[1765587103967,0.0048624,90378.0,90377.0,0.63348637]
[1765587104352,0.0048624,90378.0,90377.0,0.65092637]
[1765587105271,0.0048624,90378.0,90377.0,0.63348637]
[1765587105497,0.0048624,90378.0,90377.0,0.65092637]
[1765587105829,0.0048624,90378.0,90377.0,0.63348637]
[1765587106238,0.0048624,90378.0,90377.0,0.65092637]
[1765587139344,0.0048624,90378.0,90377.0,0.42963113]